bitfinex/quotes_ETHUSD_20250801
["timestamp","ask_amount","ask_price","bid_price","bid_amount"]
[1754064869343,0.001,3631.8,3631.7,4.35906043]
[1754064869658,0.001,3631.8,3631.7,4.38659574]
[1754064870358,0.001,3631.8,3631.7,4.93659574]
[1754064871079,1e-08,3631.8,3631.7,8.14260538]
[1754064871236,1e-08,3631.8,3631.7,8.11507007]
[1754064873260,1e-08,3631.8,3631.7,12.42307007]
[1754064874137,1e-08,3631.8,3631.7,8.11507007]
[1754064874421,1e-08,3631.8,3631.7,12.42307007]
[1754064874800,1e-08,3631.8,3631.7,8.11507007]
[1754064875012,1e-08,3631.8,3631.7,12.42307007]
[1754064877840,1e-08,3631.8,3631.7,7.19787007]
[1754064878005,1e-08,3631.8,3631.7,6.09714104]
[1754064878318,1e-08,3631.8,3631.7,10.40414104]
[1754064878908,1e-08,3631.8,3631.7,6.09714104]
[1754064879109,0.49890001,3631.8,3631.7,2.7535314]
[1754064879704,1e-08,3631.8,3631.7,2.7535314]
[1754064880215,1e-08,3631.8,3631.7,3.6057578]
[1754064880396,1e-08,3631.8,3631.7,4.01472249]
[1754064880821,1e-08,3631.8,3631.7,4.0422578]
[1754064881620,1e-08,3631.8,3631.7,7.5922578]
[1754064881824,1e-08,3631.8,3631.7,11.87172249]
[1754064883501,1e-08,3631.8,3631.7,6.09752249]
[1754064883707,1e-08,3631.8,3631.7,3.09752249]
[1754064884104,0.49890001,3631.8,3631.7,2.7535314]
[1754064886337,1e-08,3631.8,3631.7,3.8469314]
[1754064886530,1e-08,3631.8,3631.7,4.2593314]
[1754064886697,1e-08,3631.8,3631.7,4.3969314]
[1754064886898,1e-08,3631.8,3631.7,4.42446671]
[1754064888532,1e-08,3631.9,3631.8,6.30345558]
[1754064888859,1e-08,3631.9,3631.8,11.56425558]
[1754064889841,1e-08,3632.6,3632.5,6.30292498]
[1754064890003,1e-08,3632.6,3632.5,10.60792498]
[1754064890330,1e-08,3632.6,3632.5,11.70132498]
[1754064897149,1e-08,3632.6,3632.5,22.02580298]
[1754064898254,1e-08,3632.6,3632.5,18.67069498]
[1754064898450,1e-08,3632.6,3632.5,11.81157898]
[1754064898947,1e-08,3632.6,3632.5,10.85377898]
[1754064899154,1e-08,3632.6,3632.5,10.74352498]
[1754064899351,1e-08,3632.6,3632.5,6.44052498]
[1754064899516,1e-08,3632.6,3632.5,10.74352498]
[1754064899920,1e-08,3632.6,3632.5,11.69932498]
[1754064900352,1e-08,3632.6,3632.5,10.74352498]
[1754064900848,1e-08,3632.6,3632.5,7.39632498]
[1754064901051,1e-08,3632.6,3632.5,11.69832498]
[1754064902320,0.001,3633.0,3632.9,5.75262187]
[1754064902522,0.001,3633.1,3633.0,6.3025461]
[1754064902724,0.001,3633.1,3633.0,7.2583461]
[1754064903130,0.4657,3634.2,3633.8,2.75194011]
[1754064903332,0.4657,3634.2,3633.8,7.74054011]
[1754064903754,0.4657,3634.1,3633.8,7.74054011]
[1754064904135,0.4657,3634.1,3633.8,3.43954011]
[1754064904338,0.4657,3634.1,3633.8,7.74054011]
[1754064905061,0.9017,3633.9,3633.8,7.19054011]
[1754064905261,0.9017,3633.9,3633.8,2.88954011]
[1754064905426,0.9017,3633.9,3633.8,0.1376]
[1754064905627,1.26704698,3633.9,3633.8,0.1376]
[1754064905850,1.26704698,3633.9,3633.5,2.75214602]
[1754064906052,0.4657,3633.8,3633.7,2.75201585]
[1754064906255,0.4657,3633.8,3633.7,2.88961585]
[1754064906562,1.0293,3633.8,3633.2,2.75237014]
[1754064906853,0.8917,3633.7,3633.3,2.7523065]
[1754064907055,0.8917,3633.7,3633.4,2.75222613]
[1754064907361,0.8917,3633.6,3633.4,2.75222613]
[1754064907550,0.8917,3633.5,3633.4,2.75222613]
[1754064907862,0.8917,3633.5,3633.2,2.88994581]
[1754064908028,0.8917,3633.4,3633.2,0.1376]
[1754064908229,0.8917,3633.4,3633.3,2.75231882]
[1754064908963,0.8917,3633.4,3633.2,0.1376]
[1754064909166,0.4657,3633.3,3633.2,2.88999458]
[1754064909338,0.1376,3633.8,3633.2,0.1376]
[1754064909339,0.4657,3633.5,3633.2,0.1376]
[1754064909539,0.8917,3633.4,3633.3,2.75231882]
[1754064909741,0.8917,3633.4,3633.2,0.1376]
[1754064910085,0.8917,3633.3,3633.1,2.75247034]
[1754064910228,0.8917,3633.2,3632.8,2.75262611]
[1754064910428,0.01,3633.9,3632.9,2.75257254]
[1754064910429,0.8917,3633.1,3632.9,2.75257254]
[1754064910643,0.1376,3633.3,3633.0,2.75248028]
[1754064910850,0.1376,3633.3,3632.8,0.1376]
[1754064911177,0.01,3633.9,3632.5,0.1376]
[1754064911178,2.75240738,3633.2,3632.5,0.1376]
[1754064911394,0.70524074,3633.1,3632.7,2.75276628]
[1754064911659,0.8917,3633.0,3632.5,0.1376]
[1754064911869,0.8917,3633.0,3632.7,2.75276606]
[1754064912170,0.8917,3632.9,3632.6,2.75284919]
[1754064912371,0.4657,3632.8,3632.5,0.1376]
[1754064912872,0.4657,3632.7,3632.5,2.89045945]
[1754064913177,0.4657,3632.6,3632.5,2.89045945]
[1754064913531,0.4657,3632.6,3632.5,0.1376]
[1754064913731,0.4657,3632.6,3632.5,2.75292498]
[1754064914175,0.8917,3632.6,3632.3,0.1376]
[1754064914383,0.8917,3632.6,3631.8,2.75343158]
[1754064914384,0.5636,3632.5,3631.8,2.7534045]
[1754064914532,5.1907,3632.5,3631.9,2.75330525]
[1754064914738,0.1376,3632.3,3631.9,2.75330525]
[1754064914965,9.17537196,3634.0,3632.0,0.9558]
[1754064915283,0.1376,3633.0,3632.7,2.75270112]
[1754064915438,0.1376,3633.0,3632.8,2.75269188]
[1754064916054,0.1376,3633.0,3632.8,2.75268273]
[1754064916254,0.1376,3633.0,3632.8,2.75263725]
[1754064916455,0.1376,3633.0,3632.5,0.486345]
[1754064916776,0.1376,3633.3,3633.1,2.75239898]
[1754064917076,0.1376,3633.4,3633.0,2.75248481]
[1754064917233,0.1376,3633.4,3633.2,2.75237651]
[1754064917680,0.1376,3633.4,3633.3,2.75231882]
[1754064917841,0.1376,3633.4,3633.3,3.66151882]
[1754064918034,4.299,3633.6,3633.5,2.75216733]
[1754064918237,0.1376,3633.8,3633.7,2.75201585]
[1754064918582,0.01,3633.9,3633.6,2.75209158]
[1754064919275,0.01,3633.9,3633.5,0.1376]
[1754064919276,0.4801,3633.9,3633.5,2.88974777]
[1754064919449,0.01,3633.9,3633.8,2.75194011]
[1754064920168,0.01,3633.9,3633.8,2.88954011]
[1754064920363,0.01,3633.9,3633.8,0.1376]
[1754064920875,0.4801,3633.9,3633.5,0.1376]
[1754064921175,0.4701,3633.8,3633.5,0.1376]
[1754064921563,0.4701,3633.7,3633.3,2.7522697]
[1754064921762,0.8961,3633.6,3632.8,2.75269764]
[1754064921983,2.75202337,3633.7,3632.7,3.0]
[1754064921984,0.1376,3633.7,3633.3,2.75225899]
[1754064922184,0.1376,3633.7,3633.6,2.75209158]
[1754064922352,0.01,3633.9,3633.6,2.75208107]
[1754064922755,0.01,3633.9,3633.5,0.1376]
[1754064923088,0.01,3633.9,3633.8,2.75194011]
[1754064923264,0.01,3633.9,3633.8,2.88954011]
[1754064923444,0.01,3633.9,3633.8,3.79874011]
[1754064924439,0.01,3633.9,3633.8,3.82625951]
[1754064924639,0.01,3633.9,3633.8,4.34874011]
[1754064925590,0.01,3633.9,3633.8,4.55691554]
[1754064927968,0.01,3633.9,3633.8,2.88954011]
[1754064928166,0.01,3633.9,3633.8,2.75194011]
[1754064928678,0.01,3633.9,3633.2,4.297]
[1754064928679,0.4801,3633.9,3633.2,4.297]
[1754064928839,0.4801,3633.9,3633.6,2.75203229]
[1754064929240,0.4801,3633.9,3633.4,0.1376]
[1754064929443,0.4801,3633.9,3633.6,2.75209129]
[1754064929739,0.4701,3633.8,3633.6,2.75202919]
[1754064929941,0.01,3633.9,3633.5,2.75214239]
[1754064930168,0.1376,3633.8,3633.5,2.75214239]
[1754064930560,0.1376,3633.8,3633.2,0.34120242]
[1754064930851,0.1376,3633.8,3633.4,2.75222409]
[1754064931158,0.1376,3633.8,3633.3,0.9092]
[1754064931362,0.1376,3633.8,3633.6,2.75203835]
[1754064931771,0.1376,3633.8,3633.5,2.7521382]
[1754064932085,0.1376,3633.8,3633.6,2.75208899]
[1754064932474,0.1376,3633.8,3633.7,2.75201585]
[1754064932851,0.1376,3633.8,3633.6,2.75206822]
[1754064933477,0.1376,3633.8,3633.7,2.75201585]
[1754064934284,0.01,3633.9,3633.8,2.75194011]
[1754064934656,0.01,3633.9,3633.8,3.66114011]
[1754064936278,0.01,3633.9,3633.8,3.79874011]
[1754064937475,0.01,3633.9,3633.8,7.37625951]
[1754064937785,0.01,3633.9,3633.8,7.34874011]
[1754064939087,4.296,3634.7,3634.5,2.75138502]
[1754064939088,3.306,3634.7,3634.5,2.75138502]
[1754064939254,3.306,3634.7,3634.6,2.75133439]
[1754064940374,0.01,3634.9,3634.7,2.7512587]
[1754064940686,0.01,3634.9,3634.8,3.660383]
[1754064941053,0.01,3634.9,3634.8,3.68789483]
[1754064941254,0.01,3634.9,3634.8,3.660383]
[1754064942571,0.01,3634.9,3634.8,3.68789483]
[1754064943862,0.01,3634.9,3634.8,3.660383]
[1754064944108,0.01,3634.9,3634.8,3.99835927]
[1754064944898,0.01,3634.9,3634.8,4.0258711]
[1754064945100,0.01,3634.9,3634.8,3.99835927]
[1754064946502,0.01,3634.9,3634.8,3.08915927]
[1754064946732,0.01,3634.9,3634.8,2.751183]
[1754064948216,0.01,3634.9,3634.8,3.647083]
[1754064948775,0.01,3634.9,3634.8,3.67459483]
[1754064950574,0.01,3634.9,3634.8,3.647083]
[1754064953375,0.01,3634.9,3634.8,2.751183]
[1754064953775,0.5045,3634.9,3634.8,2.751183]
[1754064954003,0.5045,3634.9,3634.5,0.1376]
[1754064954208,0.426,3634.8,3634.5,2.88900803]
[1754064954405,0.4945,3634.7,3634.5,2.75140803]
[1754064954604,0.4945,3634.7,3634.4,2.75147948]
[1754064954811,0.426,3634.6,3634.4,2.75147948]
[1754064954979,0.9205,3634.6,3634.4,2.75147948]
[1754064955176,0.4945,3634.5,3634.4,2.75147948]
[1754064955575,0.4945,3634.5,3633.8,0.4645]
[1754064955777,0.5636,3634.4,3633.8,0.1376]
[1754064956078,0.5636,3634.4,3633.5,0.1376]
[1754064956079,0.1376,3634.0,3633.5,0.1376]
[1754064956277,0.4945,3633.9,3633.5,0.1376]
[1754064956495,0.1376,3634.0,3633.9,2.75186438]
[1754064956724,0.6321,3634.3,3633.9,2.75181479]
[1754064956932,0.6321,3634.3,3634.0,2.75177275]
[1754064957230,0.9205,3634.2,3633.8,0.1376]
[1754064957380,0.4945,3634.1,3633.7,2.75196443]
[1754064957581,0.9205,3634.1,3632.0,0.002]
[1754064957777,2.75203635,3633.7,3632.5,0.31427305]
[1754064958011,0.1376,3633.4,3633.1,2.75241813]
[1754064958217,0.1376,3633.4,3633.0,2.75253767]
[1754064958584,0.4945,3633.3,3632.9,2.75261098]
[1754064958780,0.4945,3633.2,3632.9,2.75261098]
[1754064959087,0.4945,3633.1,3632.8,0.1376]
[1754064959277,0.9205,3633.1,3632.8,2.75269058]
[1754064959484,0.4945,3633.0,3632.8,2.75269058]
[1754064959704,0.4945,3633.0,3632.8,2.75268877]
[1754064960106,0.4945,3632.9,3632.8,2.75269263]
[1754064960310,0.4945,3633.1,3632.6,0.1376]
[1754064960518,0.1376,3633.2,3632.6,0.1376]
[1754064960701,0.4945,3633.0,3632.7,2.75272568]
[1754064960906,0.4945,3633.0,3632.6,0.1376]
[1754064961114,7.04308139,3633.7,3632.5,3.06719277]
[1754064961115,0.9205,3632.9,3632.5,0.035245]
[1754064961312,2.75270135,3632.8,3632.5,0.035245]
[1754064961498,2.89044919,3632.6,3632.5,0.035245]
[1754064961697,5.84044919,3632.6,3632.5,0.035245]
[1754064961907,8.62985734,3632.6,3632.5,0.035245]
[1754064966721,12.92185734,3632.6,3632.5,0.035245]
[1754064968501,12.92185734,3632.6,3632.5,0.037245]
[1754064971036,6.30292498,3632.5,3632.4,1e-08]
[1754064971257,9.02775774,3632.5,3632.4,1e-08]
[1754064971458,11.60225774,3632.5,3632.4,1e-08]
[1754064972121,11.74606826,3632.5,3632.4,1e-08]
[1754064972321,5.75322816,3632.1,3632.0,1e-08]
[1754064972645,10.04522816,3632.1,3632.0,1e-08]
[1754064972823,13.66806002,3632.1,3632.0,1e-08]
[1754064974438,13.24206002,3632.1,3632.0,1e-08]
[1754064974936,13.53046002,3632.1,3632.0,1e-08]
[1754064976409,2.7535314,3631.7,3631.6,0.002]
[1754064976633,16.22090336,3631.7,3631.6,0.002]
[1754064976839,19.31642868,3631.7,3631.6,0.002]
[1754064977052,18.89042868,3631.7,3631.6,0.002]
[1754064977416,22.31642868,3631.7,3631.6,0.002]
[1754064977815,23.7455847,3631.7,3631.6,0.002]
[1754064978366,24.2955847,3631.7,3631.6,0.002]
[1754064978527,2.75375888,3631.4,3631.3,0.002]
[1754064978726,11.993568,3631.4,3631.3,0.002]
[1754064978977,13.39311008,3631.4,3631.3,0.002]
[1754064979128,2.75391055,3631.2,3631.1,0.01]
[1754064979332,19.22128251,3631.2,3631.1,0.01]
[1754064979530,23.33046183,3631.2,3631.1,0.01]
[1754064979729,24.20806183,3631.2,3631.1,0.01]
[1754064980123,23.78206183,3631.2,3631.1,0.01]
[1754064981131,24.33206183,3631.2,3631.1,0.01]
[1754064981357,24.75806183,3631.2,3631.1,1e-08]
[1754064981672,14.15508987,3631.2,3631.1,1e-08]
[1754064981872,9.86308987,3631.2,3631.1,1e-08]
[1754064982169,11.43025711,3631.2,3631.1,0.94170001]
[1754064982558,4.38434656,3631.2,3631.1,0.94170001]
[1754064982754,8.67634656,3631.2,3631.1,0.94170001]
[1754064983054,4.38434656,3631.2,3631.1,0.94170001]
[1754064983248,8.67534656,3631.2,3631.1,0.94170001]
[1754064983432,4.38434656,3631.2,3631.1,0.94170001]
[1754064983748,8.67534656,3631.2,3631.1,0.94170001]
[1754064984258,5.67534656,3631.2,3631.1,0.94170001]
[1754064984839,5.81294656,3631.2,3631.1,0.94170001]
[1754064986956,8.56685711,3631.2,3631.1,0.94170001]
[1754064987125,8.56685711,3631.2,3631.1,1e-08]
[1754064987321,9.69892147,3631.2,3631.1,1e-08]
[1754064987856,1.52194656,3631.2,3631.1,3.6956864]
[1754064988153,5.81294656,3631.2,3631.1,0.94170001]
[1754064991656,5.81294656,3631.2,3631.1,0.94370001]
[1754064992242,8.56685711,3631.2,3631.1,0.94370001]
[1754064992427,5.81294656,3631.2,3631.1,0.94370001]
[1754064992863,1.52194656,3631.2,3631.1,3.6976864]
[1754064993162,5.81194656,3631.2,3631.1,0.94370001]
[1754064993533,5.81194656,3631.2,3631.1,0.00200001]
[1754064993990,5.81194656,3631.2,3631.1,0.48650001]
[1754064994157,5.81194656,3631.2,3631.1,0.94370001]
[1754064994362,1.52194656,3631.2,3631.1,0.94370001]
[1754064994540,5.67434656,3631.2,3631.1,3.6976864]
[1754064995261,1.38434656,3631.2,3631.1,3.6976864]
[1754064995566,5.67434656,3631.2,3631.1,3.6976864]
[1754064996464,5.67434656,3631.2,3631.1,0.00200001]
[1754064996652,8.42825711,3631.2,3631.1,0.00200001]
[1754064996965,5.67434656,3631.2,3631.1,0.00200001]
[1754064997150,5.81194656,3631.2,3631.1,0.00200001]
[1754064997465,8.56585711,3631.2,3631.1,0.00200001]
[1754064997672,6.94391613,3631.2,3631.1,0.00200001]
[1754064998057,9.69782668,3631.2,3631.1,0.00200001]
[1754064998444,6.94391613,3631.2,3631.1,0.00200001]
[1754064998659,5.81094656,3631.2,3631.1,0.94370001]
[1754064999736,5.81094656,3631.2,3631.1,0.48650001]
[1754064999940,5.81094656,3631.2,3631.1,0.00200001]
[1754065000981,9.44245711,3631.2,3631.1,0.00200001]
[1754065001281,12.44245711,3631.2,3631.1,0.00200001]
[1754065001432,2.75421394,3630.8,3630.7,0.002]
[1754065001636,19.3561859,3630.8,3630.7,0.002]
[1754065001866,21.59530812,3630.8,3630.7,1e-08]
[1754065002069,21.59530812,3630.8,3630.1,0.01]
[1754065002070,5.75466916,3630.2,3630.1,0.01]
[1754065002274,10.89459426,3630.2,3630.1,0.01]
[1754065002988,11.03219426,3630.2,3630.1,0.01]
[1754065003538,11.48379426,3630.2,3630.1,0.01]
[1754065005278,6.74319426,3630.2,3630.1,0.01]
[1754065005448,11.03219426,3630.2,3630.1,0.01]
[1754065006347,11.51189426,3630.2,3630.1,0.01]
[1754065006545,11.93789426,3630.2,3630.1,0.01]
[1754065007484,11.93789426,3630.2,3629.7,0.002]
[1754065007485,5.75497272,3629.8,3629.7,0.002]
[1754065007652,19.35594468,3629.8,3629.7,0.002]
[1754065007847,20.26164468,3629.8,3629.7,0.002]
[1754065009310,5.75504862,3629.7,3629.6,0.002]
[1754065009712,6.66074862,3629.7,3629.6,0.002]
[1754065009874,9.2379065,3629.7,3629.6,0.002]
[1754065010204,9.2379065,3629.7,3629.3,1e-08]
[1754065010205,5.75527635,3629.4,3629.3,1e-08]
[1754065010424,6.30535227,3629.3,3629.2,1e-08]
[1754065010711,7.21105227,3629.3,3629.2,1e-08]
[1754065010913,0.55,3628.8,3627.7,0.48]
[1754065011089,9.17537196,3628.3,3627.4,0.9365]
[1754065011269,9.17537196,3628.3,3625.5,6.62]
[1754065011270,4.289,3628.2,3625.5,6.62]
[1754065011473,2.75647899,3627.9,3627.3,0.9365]
[1754065011719,4.289,3627.8,3627.4,0.9365]
[1754065012011,4.289,3627.8,3627.5,0.9365]
[1754065012012,7.04549489,3627.8,3627.5,0.9365]
[1754065012176,8.3256784,3627.8,3627.5,0.4565]
[1754065012371,5.56918351,3627.8,3627.6,0.48]
[1754065012576,5.56918351,3627.8,3627.6,0.4565]
[1754065012825,5.56918351,3627.8,3627.7,0.9365]
[1754065013105,5.56918351,3627.8,3627.7,0.48]
[1754065013286,5.56918351,3627.8,3627.5,0.4565]
[1754065013483,5.56918351,3627.8,3627.6,0.9365]
[1754065013676,5.56918351,3627.8,3627.7,0.9365]
[1754065013873,5.56918351,3627.8,3627.4,0.9365]
[1754065014074,5.56918351,3627.8,3627.5,0.9365]
[1754065014276,5.56918351,3627.8,3627.6,0.9365]
[1754065014472,5.56918351,3627.8,3627.7,0.9365]
[1754065015107,4.289,3627.8,3627.7,0.9365]
[1754065015514,4.289,3627.8,3627.7,3.69299459]
[1754065015677,6.621,3628.3,3628.2,2.75618764]
[1754065015880,6.621,3628.3,3628.2,3.69268764]
[1754065015881,10.91,3628.3,3628.2,3.69268764]
[1754065016289,6.621,3628.3,3628.2,3.69268764]
[1754065016501,1.23142187,3628.4,3628.3,2.75611167]
[1754065016711,5.52042187,3628.4,3628.3,3.69261167]
[1754065020350,1.23142187,3628.4,3628.3,3.69261167]
[1754065020634,5.51942187,3628.4,3628.3,3.69261167]
[1754065020799,6.623,3629.8,3628.4,2.75603571]
[1754065020996,4.288,3629.7,3629.3,2.75529959]
[1754065021231,0.1376,3629.2,3629.1,2.75550411]
[1754065021450,4.4256,3629.2,3629.1,2.75550411]
[1754065021733,2.75460557,3630.3,3629.1,2.75550411]
[1754065021734,4.288,3629.5,3629.4,2.75527635]
[1754065021912,4.288,3629.5,3629.4,3.69177635]
[1754065024468,1.15257442,3630.8,3629.7,2.75504862]
[1754065024682,1.15257442,3630.8,3630.5,2.75439566]
[1754065024683,3.0,3630.6,3630.5,2.75439566]
[1754065024838,3.0,3630.6,3630.5,0.9365]
[1754065025044,3.0,3630.6,3630.5,3.69094153]
[1754065025245,3.0,3630.6,3630.5,0.9365]
[1754065025440,4.287,3630.7,3630.6,2.75436566]
[1754065025739,1.15257442,3630.8,3630.7,2.7542898]
[1754065025939,5.43957442,3630.8,3630.7,3.6907898]
[1754065027281,5.43957442,3630.8,3630.4,0.9365]
[1754065027480,0.54395744,3630.7,3630.0,0.9365]
[1754065027643,0.54395744,3630.7,3630.3,2.75452086]
[1754065028179,0.54395744,3630.7,3630.3,3.23452086]
[1754065028336,0.54395744,3630.7,3630.3,0.48]
[1754065028537,0.54395744,3630.7,3630.3,3.23453212]
[1754065028952,0.54395744,3630.7,3630.2,2.75465252]
[1754065029153,0.54395744,3630.7,3630.2,2.75465548]
[1754065029881,0.4797,3630.6,3629.9,0.48]
[1754065030055,0.4797,3630.6,3630.1,2.75468032]
[1754065030056,4.286,3630.5,3630.1,2.75468032]
[1754065030580,4.286,3630.5,3630.0,2.75479078]
[1754065030758,5.19267416,3630.5,3630.0,2.75479078]
[1754065030962,5.19267416,3630.5,3630.0,3.23479078]
[1754065031162,5.19267416,3630.5,3630.0,3.69129078]
[1754065031394,7.94713827,3630.5,3629.2,2.9629406]
[1754065031577,0.1376,3630.1,3629.6,0.6176]
[1754065031803,4.286,3630.0,3629.6,1.0741]
[1754065032124,0.1376,3629.9,3629.6,0.9365]
[1754065032320,0.1376,3629.9,3629.7,2.75497892]
[1754065032525,0.1376,3629.9,3629.7,3.69147892]
[1754065032677,0.1376,3629.9,3629.8,3.23497272]
[1754065033030,0.1376,3629.9,3629.8,3.69147272]
[1754065033206,4.285,3629.9,3629.8,4.06073389]
[1754065033371,4.285,3629.9,3629.8,4.19833389]
[1754065033983,4.285,3630.3,3630.2,2.75466916]
[1754065034180,1.15257442,3630.8,3630.7,2.7542898]
[1754065034387,5.43757442,3630.8,3630.7,3.6907898]
[1754065034907,1.15257442,3630.8,3630.7,3.6907898]
[1754065035084,5.43757442,3630.8,3630.7,3.6907898]
[1754065035292,4.285,3630.8,3630.7,3.6907898]
[1754065035810,6.7616,3631.1,3630.8,2.75419433]
[1754065036118,6.7616,3631.1,3631.0,2.75406224]
[1754065036412,6.7616,3631.1,3631.0,3.67696224]
[1754065036413,10.909,3631.1,3631.0,3.67696224]
[1754065036592,6.624,3631.1,3631.0,3.67696224]
[1754065036791,10.909,3631.1,3631.0,3.67696224]
[1754065037217,6.624,3631.1,3631.0,3.67696224]
[1754065037392,10.909,3631.1,3631.0,3.67696224]
[1754065037589,0.001,3631.1,3631.0,3.67696224]
[1754065037818,4.286,3631.1,3631.0,4.19593665]
[1754065038013,4.286,3631.1,3631.0,3.67696224]
[1754065040026,0.001,3631.1,3631.0,3.70450286]
[1754065040327,0.001,3631.1,3631.0,3.67696224]
[1754065042517,0.001,3631.1,3631.0,4.25450286]
[1754065042702,1e-08,3631.2,3631.1,3.30398639]
[1754065043030,1e-08,3631.2,3631.1,3.81448639]
[1754065043826,1e-08,3631.2,3631.1,3.38018639]
[1754065044024,1e-08,3631.2,3631.1,3.84202625]
[1754065044631,1e-08,3631.2,3631.1,4.60344474]
[1754065044933,1e-08,3631.2,3631.1,8.85890488]
[1754065045636,1e-08,3631.6,3631.5,3.30368305]
[1754065045929,0.01,3632.9,3632.4,2.75300077]
[1754065046131,0.01,3632.9,3632.4,4.01873961]
[1754065046292,0.01,3632.9,3632.8,3.30269764]
[1754065046499,0.01,3632.9,3632.8,3.33022461]
[1754065046715,0.01,3632.9,3632.8,4.36319764]
[1754065047146,1e-08,3632.9,3632.8,4.50308995]
[1754065047333,1e-08,3632.9,3632.8,7.86824366]
[1754065047530,1e-08,3632.9,3632.8,7.84071669]
[1754065047734,1e-08,3632.9,3632.8,11.98310069]
[1754065048038,1e-08,3632.9,3632.8,7.84071669]
[1754065048238,1e-08,3632.9,3632.8,12.12171669]
[1754065048814,1e-08,3632.9,3632.8,7.70082438]
[1754065049258,1e-08,3632.9,3632.8,11.98182438]
[1754065050357,1e-08,3632.9,3632.8,6.77792438]
[1754065050520,1e-08,3632.9,3632.8,0.1376]
[1754065050714,0.49550001,3632.9,3632.8,0.1376]
[1754065050959,1e-08,3632.9,3632.8,2.89029764]
[1754065051125,1e-08,3632.9,3632.8,3.84072461]
[1754065051319,1e-08,3632.9,3632.8,3.70312461]
[1754065051518,1e-08,3632.9,3632.8,4.39072461]
[1754065051723,1e-08,3632.9,3632.8,4.36319764]
[1754065051919,1e-08,3632.9,3632.8,4.39072461]
[1754065052325,1e-08,3632.9,3632.8,7.39072461]
[1754065052656,1e-08,3632.9,3632.8,22.93270664]
[1754065053458,1e-08,3633.3,3633.2,6.30239458]
[1754065053763,1e-08,3633.3,3633.2,11.50429458]
[1754065054124,1e-08,3633.3,3633.2,11.64189458]
[1754065055499,1e-08,3633.3,3633.2,10.16899458]
[1754065055648,1e-08,3633.3,3633.2,2.88999458]
[1754065059169,1e-08,3633.3,3633.2,3.09902249]
[1754065059375,1e-08,3633.3,3633.2,4.11084643]
[1754065059541,1e-08,3633.3,3633.2,7.59944643]
[1754065059746,1e-08,3633.3,3633.2,7.57192249]
[1754065061965,1e-08,3633.3,3633.2,17.42195049]
[1754065062148,1e-08,3633.3,3633.2,16.14874449]
[1754065062656,1e-08,3633.3,3633.2,10.14396449]
[1754065063267,1e-08,3633.3,3633.2,16.63631151]
[1754065063460,1e-08,3633.3,3633.2,16.49871151]
[1754065063669,1e-08,3633.3,3633.2,16.63631151]
[1754065064177,1e-08,3633.9,3633.8,14.17441411]
[1754065064358,1e-08,3633.9,3633.8,10.57894011]
[1754065064561,1e-08,3633.9,3633.8,10.71654011]
[1754065064870,1e-08,3633.9,3633.8,11.63944011]
[1754065065482,1e-08,3633.9,3633.8,15.73014011]
[1754065065778,1e-08,3633.9,3633.8,6.43954011]
[1754065065983,0.89980001,3633.9,3633.8,0.1376]
[1754065066282,1e-08,3633.9,3633.8,2.88954011]
[1754065066472,1e-08,3633.9,3633.8,4.03122016]
[1754065066646,1e-08,3633.9,3633.8,8.30722016]
[1754065066851,1e-08,3633.9,3633.8,8.27970076]
[1754065067071,1e-08,3633.9,3633.8,12.22560076]
[1754065068361,0.001,3635.3,3635.2,3.30088028]
[1754065068560,0.011,3635.9,3635.6,2.75057762]
[1754065068872,0.011,3635.9,3635.6,2.88817762]
[1754065069184,0.011,3635.9,3635.6,7.16417762]
[1754065069361,0.4748,3635.7,3635.6,7.16417762]
[1754065069758,0.4748,3635.7,3635.6,2.88817762]
[1754065070085,0.9008,3635.7,3635.6,2.75057762]
[1754065070682,0.9008,3635.7,3635.6,2.88817762]
[1754065070683,0.001,3635.7,3635.6,2.88817762]
[1754065070851,0.9008,3635.7,3635.6,0.1376]
[1754065071055,0.9008,3635.7,3634.6,0.4911]
[1754065071056,0.9008,3635.7,3635.4,0.1376]
[1754065071376,0.8998,3635.6,3635.4,0.1376]
[1754065071880,0.8998,3635.5,3634.6,4.275]
[1754065072200,0.4738,3635.4,3635.0,0.1376]
[1754065072386,0.1376,3635.1,3634.6,0.1376]
[1754065072691,0.6114,3635.4,3635.0,2.75103163]
[1754065072894,0.4738,3635.3,3634.8,0.1376]
[1754065073064,1.26094,3635.3,3634.8,2.75117857]
[1754065073266,0.426,3635.2,3634.7,0.1376]
[1754065073490,0.426,3635.2,3634.8,2.751183]
[1754065073671,0.4738,3635.1,3634.8,2.751183]
[1754065073866,0.4738,3635.1,3634.5,0.20335306]
[1754065074070,0.4738,3635.1,3634.9,2.88863613]
[1754065074313,0.4738,3635.0,3634.9,2.88863613]
[1754065074652,0.4738,3635.3,3635.0,2.75098907]
[1754065074875,0.4738,3635.3,3634.9,0.1376]
[1754065074876,0.4738,3635.2,3634.9,2.88869142]
[1754065075192,0.8998,3635.1,3634.9,0.1376]
[1754065075371,0.4738,3635.0,3634.9,2.88870426]
[1754065075691,0.4738,3635.0,3634.9,0.1376]
[1754065076190,1.0374,3635.0,3634.7,2.75120895]
[1754065076395,0.4738,3634.9,3634.4,2.88907347]
[1754065076554,0.4738,3634.9,3634.6,2.75132118]
[1754065076756,0.1376,3635.0,3634.6,2.75132118]
[1754065076983,0.8998,3634.9,3634.4,2.88901933]
[1754065077301,0.8998,3634.8,3634.7,2.7512587]
[1754065077472,0.4738,3634.8,3634.7,2.7512587]
[1754065077673,0.4738,3634.8,3634.4,0.1376]
[1754065077995,0.8998,3634.7,3634.5,2.75140134]
[1754065078160,0.426,3634.7,3634.4,2.88906716]
[1754065078363,0.4738,3634.6,3634.4,2.88906716]
[1754065078582,0.426,3634.7,3634.4,0.1376]
[1754065079060,0.8998,3634.6,3634.4,0.1376]
[1754065079264,0.4738,3634.5,3634.4,2.8890858]
[1754065079573,0.001,3634.9,3634.6,2.75130634]
[1754065079574,0.4748,3634.9,3634.6,2.75130634]
[1754065079884,0.4738,3634.8,3634.5,2.75137934]
[1754065080055,0.427,3634.9,3634.5,2.75137934]